fUSD/lending_fUSD_20240620
["ID","MTS","AMOUNT","RATE_DAILY","PERIOD"]
[329943429,1718853034498,-500.0,0.00013698,2]
[329943430,1718853034507,-500.0,0.00013698,2]
[329943431,1718853034516,-601.58,0.00013698,2]
[329943432,1718853034525,-508.38617844,0.00013698,2]
[329943433,1718853034534,-505.27099793,0.00013698,2]
[329943434,1718853034543,-555.08,0.00013698,2]
[329943435,1718853034552,-500.0,0.00013698,2]
[329943436,1718853034561,-502.13838301,0.00013698,2]
[329943437,1718853034570,-500.0,0.00013698,2]
[329943438,1718853034580,-274.94453328,0.00013698,2]
[329943439,1718853034590,-500.0,0.00013698,2]
[329943440,1718853034599,-506.87446756,0.00013698,2]
[329943441,1718853034608,-551.67,0.00013698,2]
[329943442,1718853034617,-536.3,0.00013698,2]
[329943443,1718853034627,-500.0,0.00013698,2]
[329943444,1718853034636,-500.0,0.00013698,2]
[329943445,1718853034646,-719.4,0.00013698,2]
[329943446,1718853034655,-502.19842828,0.00013698,2]
[329943447,1718853034665,-507.32869745,0.00013698,2]
[329943448,1718853034674,-503.85907009,0.00013698,2]
[329943449,1718853034683,-1141.58,0.00013698,2]
[329943450,1718853034693,-500.0,0.00013698,2]
[329943451,1718853034703,-500.0,0.00013698,2]
[329943452,1718853034712,-500.0,0.00013698,2]
[329943453,1718853034722,-846.58,0.00013698,2]
[329943454,1718853034731,-500.0,0.00013698,2]
[329943455,1718853034741,-502.50074109,0.00013698,2]
[329943456,1718853034750,-500.0,0.00013698,2]
[329943457,1718853034760,-151.0,0.00013698,2]
[329943458,1718853034769,-214.51640107,0.00013698,2]
[329943459,1718853034786,-1270.54359893,0.00013698,2]
[329943460,1718853034796,-151.0,0.00013698,2]
[329943461,1718853034805,-151.0,0.00013698,2]
[329943462,1718853034815,-151.0,0.00013698,2]
[329943463,1718853034824,-799.39,0.00013698,2]
[329943464,1718853034834,-20073.93957758,0.00013698,2]
[329943465,1718853034844,-151.0,0.00013698,2]
[329943466,1718853034854,-500.0,0.00013698,2]
[329943467,1718853034863,-151.0,0.00013698,2]
[329943468,1718853034872,-500.0,0.00013698,2]
[329943469,1718853034882,-151.0,0.00013698,2]
[329943470,1718853034891,-151.0,0.00013698,2]
[329943471,1718853034901,-824.21,0.00013698,2]
[329943472,1718853034910,-924.96,0.00013698,2]
[329943473,1718853034920,-500.0,0.00013698,2]
[329943474,1718853034929,-242.03,0.00013698,2]
[329943475,1718853034939,-863.07,0.00013698,2]
[329943476,1718853034948,-979.54,0.00013698,2]
[329943477,1718853034958,-500.0,0.00013698,2]
[329943478,1718853034967,-592.27,0.00013698,2]
[329943479,1718853034981,-500.0,0.00013698,2]
[329943480,1718853034990,-500.0,0.00013698,2]
[329943481,1718853034999,-500.0,0.00013698,2]
[329943482,1718853035011,-638.66,0.00013698,2]
[329943483,1718853035020,-500.0,0.00013698,2]
[329943484,1718853035029,-1127.95,0.00013698,2]
[329943485,1718853035039,-1268.52,0.00013698,2]
[329943486,1718853035048,-500.0,0.00013698,2]
[329943487,1718853035062,-507.16768886,0.00013698,2]
[329943488,1718853035072,-1108.33,0.00013698,2]
[329943489,1718853035083,-970.3,0.00013698,2]
[329943490,1718853035092,-500.0,0.00013698,2]
[329943491,1718853035101,-500.0,0.00013698,2]
[329943492,1718853035111,-500.0,0.00013698,2]
[329943493,1718853035121,-728.11,0.00013698,2]
[329943494,1718853035130,-500.0,0.00013698,2]
[329943495,1718853035139,-500.0,0.00013698,2]
[329943496,1718853035149,-508.64695215,0.00013698,2]
[329943497,1718853035158,-500.0,0.00013698,2]
[329943498,1718853035167,-500.0,0.00013698,2]
[329943499,1718853035177,-500.0,0.00013698,2]
[329943500,1718853035186,-566.37,0.00013698,2]
[329943501,1718853035195,-652.98,0.00013698,2]
[329943502,1718853035204,-500.0,0.00013698,2]
[329943503,1718853035213,-500.0,0.00013698,2]
[329943504,1718853035222,-500.0,0.00013698,2]
[329943505,1718853035231,-500.0,0.00013698,2]
[329943506,1718853035240,-500.0,0.00013698,2]
[329943507,1718853035249,-514.5263785,0.00013698,2]
[329943508,1718853035258,-500.0,0.00013698,2]
[329943509,1718853035268,-885.09,0.00013698,2]
[329943510,1718853035277,-502.4151262,0.00013698,2]
[329943511,1718853035286,-1036.73,0.00013698,2]
[329943512,1718853035535,-547.61512581,0.00013698,2]
[329943513,1718853035544,-500.0,0.00013698,2]
[329943514,1718853035554,-512.56063793,0.00013698,2]
[329943515,1718853035563,-500.0,0.00013698,2]
[329943516,1718853035573,-799.82,0.00013698,2]
[329943517,1718853035585,-1113.5,0.00013698,2]
[329943518,1718853035594,-500.0,0.00013698,2]
[329943519,1718853035602,-500.0,0.00013698,2]
[329943520,1718853035612,-500.0,0.00013698,2]
[329943521,1718853035621,-543.77,0.00013698,2]
[329943522,1718853035630,-500.0,0.00013698,2]
[329943523,1718853035639,-766.76,0.00013698,2]
[329943524,1718853035648,-500.0,0.00013698,2]
[329943525,1718853035658,-715.62,0.00013698,2]
[329943526,1718853035667,-662.03,0.00013698,2]
[329943527,1718853035676,-500.0,0.00013698,2]
[329943528,1718853035685,-506.68816466,0.00013698,2]
[329943529,1718853035695,-500.0,0.00013698,2]
[329943530,1718853035704,-502.15795409,0.00013698,2]
[329943531,1718853035713,-500.0,0.00013698,2]
[329943532,1718853035723,-672.76,0.00013698,2]
[329943533,1718853035732,-996.05,0.00013698,2]
[329943534,1718853035742,-500.0,0.00013698,2]
[329943535,1718853035751,-500.0,0.00013698,2]
[329943536,1718853035760,-1852.94,0.00013698,2]
[329943537,1718853035769,-512.01,0.00013698,2]
[329943538,1718853035778,-508.41,0.00013698,2]
[329943539,1718853035788,-500.0,0.00013698,2]
[329943540,1718853035798,-500.0,0.00013698,2]
[329943541,1718853035807,-500.0,0.00013698,2]
[329943542,1718853035816,-504.4200747,0.00013698,2]
[329943543,1718853035825,-1125.55,0.00013698,2]
[329943544,1718853035839,-500.0,0.00013698,2]
[329943545,1718853035848,-590.26,0.00013698,2]
[329943546,1718853035856,-808.15,0.00013698,2]
[329943547,1718853035865,-745.46,0.00013698,2]
[329943548,1718853035874,-500.0,0.00013698,2]
[329943549,1718853035883,-500.0,0.00013698,2]
[329943550,1718853035893,-500.0,0.00013698,2]
[329943551,1718853035902,-500.0,0.00013698,2]
[329943552,1718853035912,-500.0,0.00013698,2]
[329943553,1718853035921,-559.07,0.00013698,2]
[329943554,1718853035930,-500.0,0.00013698,2]
[329943555,1718853035939,-610.66,0.00013698,2]
[329943556,1718853035949,-501.61352811,0.00013698,2]
[329943557,1718853035959,-653.08,0.00013698,2]
[329943558,1718853035970,-815.68,0.00013698,2]
[329943559,1718853035982,-805.91,0.00013698,2]
[329943560,1718853035991,-500.0,0.00013698,2]
[329943561,1718853036000,-500.0,0.00013698,2]
[329943562,1718853036011,-518.32,0.00013698,2]
[329943563,1718853036020,-500.0,0.00013698,2]
[329943564,1718853036029,-500.0,0.00013698,2]
[329943565,1718853036038,-500.0,0.00013698,2]
[329943566,1718853036050,-500.0,0.00013698,2]
[329943567,1718853036059,-986.99,0.00013698,2]
[329943568,1718853036069,-607.93,0.00013698,2]
[329943569,1718853036078,-500.0,0.00013698,2]
[329943570,1718853036089,-810.8,0.00013698,2]
[329943571,1718853036098,-500.0,0.00013698,2]
[329943572,1718853036107,-500.0,0.00013698,2]
[329943573,1718853036116,-605.86,0.00013698,2]
[329943574,1718853036125,-1043.65,0.00013698,2]
[329943575,1718853036135,-497.97819877,0.00013698,2]
[329943576,1718853036144,-505.16519932,0.00013698,2]
[329943577,1718853036154,-500.0,0.00013698,2]
[329943578,1718853036163,-500.0,0.00013698,2]
[329943579,1718853036172,-500.0,0.00013698,2]
[329943580,1718853036181,-154.055594,0.00013698,2]
[329943581,1718853036190,-500.0,0.00013698,2]
[329943582,1718853036199,-608.03,0.00013698,2]
[329943583,1718853036208,-504.65202918,0.00013698,2]
[329943584,1718853036217,-500.0,0.00013698,2]
[329943585,1718853036226,-533.54568643,0.00013698,2]
[329943586,1718853036236,-567.28,0.00013698,2]
[329943587,1718853036245,-500.0,0.00013698,2]
[329943588,1718853036254,-742.74,0.00013698,2]
[329943589,1718853036263,-500.0,0.00013698,2]
[329943590,1718853036273,-500.0,0.00013698,2]
[329943591,1718853036282,-871.32,0.00013698,2]
[329943592,1718853036291,-497.60349992,0.00013698,2]
[329943593,1718853036301,-500.0,0.00013698,2]
[329943594,1718853036309,-500.0,0.00013698,2]
[329943595,1718853036319,-489.6074465,0.00013698,2]
[329943596,1718853036328,-500.0,0.00013698,2]
[329943597,1718853036339,-500.0,0.00013698,2]
[329943598,1718853036348,-612.7,0.00013698,2]
[329943599,1718853036357,-500.0,0.00013698,2]
[329943600,1718853036366,-1086.8,0.00013698,2]
[329943601,1718853036375,-497.74551089,0.00013698,2]
[329943602,1718853036384,-500.0,0.00013698,2]
[329943603,1718853036394,-500.0,0.00013698,2]
[329943604,1718853036403,-500.0,0.00013698,2]
[329943605,1718853036412,-502.14195265,0.00013698,2]
[329943606,1718853036421,-554.6,0.00013698,2]
[329943607,1718853036430,-500.0,0.00013698,2]
[329943608,1718853036440,-322.1936987,0.00013698,2]
[329943609,1718853036449,-327.94601483,0.00013698,2]
[329943610,1718853036459,-500.0,0.00013698,2]
[329943611,1718853036468,-500.0,0.00013698,2]
[329943612,1718853036478,-500.0,0.00013698,2]
[329943613,1718853036487,-714.23,0.00013698,2]
[329943614,1718853036496,-500.0,0.00013698,2]
[329943615,1718853036506,-500.0,0.00013698,2]
[329943616,1718853036515,-500.66,0.00013698,2]
[329943617,1718853036525,-1018.8,0.00013698,2]
[329943618,1718853036534,-500.0,0.00013698,2]
[329943619,1718853036544,-500.0,0.00013698,2]
[329943620,1718853036554,-498.02917747,0.00013698,2]
[329943621,1718853036563,-500.0,0.00013698,2]
[329943622,1718853036573,-834.05,0.00013698,2]
[329943623,1718853036582,-527.53,0.00013698,2]
[329943624,1718853036591,-500.0,0.00013698,2]
[329943625,1718853036600,-508.98862125,0.00013698,2]
[329943626,1718853036609,-813.18,0.00013698,2]
[329943627,1718853036618,-561.36,0.00013698,2]
[329943628,1718853036628,-500.0,0.00013698,2]
[329943629,1718853036637,-500.0,0.00013698,2]
[329943630,1718853036646,-500.0,0.00013698,2]
[329943631,1718853036655,-1353.33,0.00013698,2]
[329943632,1718853036664,-672.77,0.00013698,2]
[329943633,1718853036673,-1033.27,0.00013698,2]
[329943634,1718853036682,-526.91120826,0.00013698,2]
[329943635,1718853036691,-508.77718636,0.00013698,2]
[329943636,1718853036700,-500.0,0.00013698,2]
[329943637,1718853036709,-500.0,0.00013698,2]
[329943638,1718853036718,-500.0,0.00013698,2]
[329943639,1718853036728,-516.50169829,0.00013698,2]
[329943640,1718853036737,-500.0,0.00013698,2]
[329943641,1718853036746,-535.99132747,0.00013698,2]
[329943642,1718853036755,-731.44,0.00013698,2]
[329943643,1718853036764,-503.00771206,0.00013698,2]
[329943644,1718853036773,-510.55,0.00013698,2]
[329943645,1718853036782,-500.0,0.00013698,2]
[329943646,1718853036791,-501.34168513,0.00013698,2]
[329943647,1718853036800,-500.0,0.00013698,2]
[329943648,1718853036810,-1067.56,0.00013698,2]
[329943649,1718853036819,-500.0,0.00013698,2]
[329943650,1718853036827,-500.0,0.00013698,2]
[329943651,1718853036839,-500.0,0.00013698,2]
[329943652,1718853036848,-582.61,0.00013698,2]
[329943653,1718853036857,-500.0,0.00013698,2]
[329943654,1718853036866,-592.67,0.00013698,2]
[329943655,1718853036875,-353.62,0.00013698,2]
[329943656,1718853036884,-500.0,0.00013698,2]
[329943657,1718853036894,-1096.89,0.00013698,2]
[329943658,1718853036903,-161.31615661,0.00013698,2]
[329943659,1718853036912,-500.0,0.00013698,2]
[329943660,1718853036921,-754.2,0.00013698,2]
[329943661,1718853036930,-500.0,0.00013698,2]
[329943662,1718853036939,-500.0,0.00013698,2]
[329943663,1718853036948,-501.56103804,0.00013698,2]
[329943664,1718853036958,-500.0,0.00013698,2]
[329943665,1718853036969,-500.0,0.00013698,2]
[329943666,1718853036981,-500.0,0.00013698,2]
[329943667,1718853036991,-1148.86,0.00013698,2]
[329943668,1718853036999,-1200.48,0.00013698,2]
[329943669,1718853037010,-686.44,0.00013698,2]
[329943670,1718853037019,-515.49,0.00013698,2]
[329943671,1718853037028,-502.39820284,0.00013698,2]
[329943672,1718853037037,-503.00828934,0.00013698,2]
[329943673,1718853037048,-1058.28,0.00013698,2]
[329943674,1718853037059,-500.0,0.00013698,2]
[329943675,1718853037068,-684.59,0.00013698,2]
[329943676,1718853037078,-500.0,0.00013698,2]
[329943677,1718853037089,-151.0,0.00013698,2]
[329943678,1718853037099,-162.337863,0.00013698,2]
[329943679,1718853037108,-531.29,0.00013698,2]
[329943680,1718853037119,-500.0,0.00013698,2]
[329943681,1718853037129,-2996.66615,0.00013698,2]
[329943682,1718853037139,-820.06,0.00013698,2]
[329943683,1718853037150,-500.0,0.00013698,2]
[329943684,1718853037159,-515.49559664,0.00013698,2]
[329943685,1718853037169,-500.0,0.00013698,2]
[329943686,1718853037179,-533.33,0.00013698,2]
[329943687,1718853037188,-748.46,0.00013698,2]
[329943688,1718853037198,-500.0,0.00013698,2]
[329943689,1718853037208,-500.0,0.00013698,2]
[329943690,1718853037217,-506.15045761,0.00013698,2]
[329943691,1718853037227,-806.24,0.00013698,2]
[329943692,1718853037236,-502.3917886,0.00013698,2]
[329943693,1718853037246,-501.99083591,0.00013698,2]
[329943694,1718853037255,-500.0,0.00013698,2]
[329943695,1718853037265,-500.0,0.00013698,2]
[329943696,1718853037274,-748.53,0.00013698,2]
[329943697,1718853037283,-402.56335514,0.00013698,2]
[329943698,1718853037292,-677.48,0.00013698,2]
[329943699,1718853037302,-500.0,0.00013698,2]
[329943700,1718853037311,-507.39160058,0.00013698,2]
[329943701,1718853037321,-151.0,0.00013698,2]
[329943702,1718853037330,-151.0,0.00013698,2]
[329943703,1718853037340,-151.0,0.00013698,2]
[329943704,1718853037349,-501.01825721,0.00013698,2]
[329943705,1718853037359,-152.023457,0.00013698,2]
[329943706,1718853037369,-748.7,0.00013698,2]
[329943707,1718853037378,-151.0,0.00013698,2]
[329943708,1718853037388,-151.0,0.00013698,2]
[329943709,1718853037397,-151.0,0.00013698,2]
[329943710,1718853037406,-607.9,0.00013698,2]
[329943711,1718853037417,-151.0,0.00013698,2]
[329943712,1718853037427,-3403.34,0.00013698,2]
[329943713,1718853037436,-1258.74,0.00013698,2]
[329943714,1718853037446,-500.0,0.00013698,2]
[329943715,1718853037455,-500.0,0.00013698,2]
[329943716,1718853037465,-587.45,0.00013698,2]
[329943717,1718853037475,-1055.54,0.00013698,2]
[329943718,1718853037484,-151.0,0.00013698,2]
[329943719,1718853037494,-256.004549,0.00013698,2]
[329943720,1718853037503,-502.49127437,0.00013698,2]
[329943721,1718853037513,-795.54,0.00013698,2]
[329943722,1718853037522,-500.0,0.00013698,2]
[329943723,1718853037532,-502.5160327,0.00013698,2]
[329943724,1718853037541,-7016.96,0.00013698,2]
[329943725,1718853037550,-5185.59,0.00013698,2]
[329943726,1718853037560,-500.0,0.00013698,2]
[329943727,1718853037569,-500.0,0.00013698,2]
[329943728,1718853037579,-500.0,0.00013698,2]
[329943729,1718853037589,-500.0,0.00013698,2]
[329943730,1718853037598,-974.7,0.00013698,2]
[329943731,1718853037607,-505.18238787,0.00013698,2]
[329943732,1718853037616,-500.0,0.00013698,2]
[329943733,1718853037626,-500.0,0.00013698,2]
[329943734,1718853037635,-1862.47,0.00013698,2]
[329943735,1718853037644,-503.14392726,0.00013698,2]
[329943736,1718853037654,-7451.63,0.00013698,2]
[329943737,1718853037663,-505.73120522,0.00013698,2]
[329943738,1718853037673,-336.558215,0.00013698,2]
[329943739,1718853037682,-336.558215,0.00013698,2]
[329943740,1718853037692,-336.558215,0.00013698,2]
[329943741,1718853037701,-336.558215,0.00013698,2]
[329943742,1718853037711,-500.0,0.00013698,2]
[329943743,1718853037720,-500.0,0.00013698,2]
[329943744,1718853037730,-584.11,0.00013698,2]
[329943745,1718853037739,-521.87,0.00013698,2]
[329943746,1718853037748,-400.25233875,0.00013698,2]
[329943747,1718853037757,-336.558215,0.00013698,2]
[329943748,1718853037767,-336.558215,0.00013698,2]
[329943749,1718853037776,-500.0,0.00013698,2]
[329943750,1718853037785,-1007.9,0.00013698,2]
[329943751,1718853037795,-336.558215,0.00013698,2]
[329943752,1718853037804,-336.558215,0.00013698,2]
[329943753,1718853037814,-500.0,0.00013698,2]
[329943754,1718853037823,-850.97,0.00013698,2]
[329943755,1718853037833,-503.54291936,0.00013698,2]
[329943756,1718853037843,-503.0839748,0.00013698,2]
[329943757,1718853037853,-518.82427078,0.00013698,2]
[329943758,1718853037863,-500.0,0.00013698,2]
[329943759,1718853037872,-569.09184392,0.00013698,2]
[329943760,1718853037881,-1970.3,0.00013698,2]
[329943761,1718853037891,-500.0,0.00013698,2]
[329943762,1718853037900,-507.2192596,0.00013698,2]
[329943763,1718853037909,-500.0,0.00013698,2]
[329943764,1718853037919,-500.0,0.00013698,2]
[329943765,1718853037929,-3263.86,0.00013698,2]
[329943766,1718853037939,-39837.7,0.00013698,2]
[329943767,1718853037948,-500.0,0.00013698,2]
[329943768,1718853037958,-500.0,0.00013698,2]
[329943769,1718853037967,-500.0,0.00013698,2]
[329943770,1718853037982,-2030.8,0.00013698,2]
[329943771,1718853037991,-500.0,0.00013698,2]
[329943772,1718853038002,-500.0,0.00013698,2]
[329943773,1718853038012,-1067.28,0.00013698,2]
[329943774,1718853038024,-786.39,0.00013698,2]
[329943775,1718853038034,-1070.11,0.00013698,2]
[329943776,1718853038043,-607.08,0.00013698,2]
[329943777,1718853038057,-2465.27,0.00013698,2]
[329943778,1718853038066,-2600.45,0.00013698,2]
[329943779,1718853038076,-6132.57,0.00013698,2]
[329943780,1718853038087,-500.0,0.00013698,2]
[329943781,1718853038096,-1024.51,0.00013698,2]
[329943782,1718853038106,-532.97,0.00013698,2]
[329943783,1718853038116,-2510.73,0.00013698,2]
[329943784,1718853038126,-500.0,0.00013698,2]
[329943785,1718853038135,-500.0,0.00013698,2]
[329943786,1718853038145,-1102.16,0.00013698,2]
[329943787,1718853038155,-223.03801717,0.00013698,2]
[329943804,1718853040804,-3121.61111413,0.00013698,2]
[329943805,1718853040816,-302.52178472,0.00013698,2]
[329943806,1718853040829,-7842.15908398,0.00013698,2]
[329943807,1718853040839,-1228.16,0.00013698,2]
[329943808,1718853040849,-1097.41752778,0.00013698,2]
[329943813,1718853041018,-1520.60108001,0.00013698,2]
[329943814,1718853041030,-740.06139221,0.00013698,2]
[329943815,1718853041040,-575.57,0.00013698,2]
[329943816,1718853041049,-1466.96,0.00013698,2]
[329943817,1718853041062,-500.0,0.00013698,2]
[329943818,1718853041072,-500.0,0.00013698,2]
[329943819,1718853041081,-1438.51,0.00013698,2]
[329943820,1718853041092,-727.08,0.00013698,2]
[329943821,1718853041102,-674.81,0.00013698,2]
[329943822,1718853041111,-500.0,0.00013698,2]
[329943823,1718853041121,-151.0,0.00013698,2]
[329943824,1718853041130,-151.0,0.00013698,2]
[329943825,1718853041140,-500.0,0.00013698,2]
[329943826,1718853041150,-169.187442,0.00013698,2]
[329943827,1718853041159,-500.0,0.00013698,2]
[329943828,1718853041169,-2145.7,0.00013698,2]
[329943829,1718853041178,-500.0,0.00013698,2]
[329943830,1718853041188,-500.0,0.00013698,2]
[329943831,1718853041197,-559.92837543,0.00013698,2]
[329943832,1718853041206,-500.0,0.00013698,2]
[329943833,1718853041215,-500.0,0.00013698,2]
[329943834,1718853041225,-858.26,0.00013698,2]
[329943835,1718853041235,-3659.55,0.00013698,2]
[329943836,1718853041245,-682.86,0.00013698,2]
[329943837,1718853041254,-540.98,0.00013698,2]
[329943838,1718853041263,-3766.01,0.00013698,2]
[329943839,1718853041273,-1257.02,0.00013698,2]
[329943840,1718853041282,-11603.95054097,0.00013698,2]
[329943841,1718853041294,-760.05397092,0.00013698,2]
[329943842,1718853041306,-11991.44661546,0.00013698,2]
[329943843,1718853041317,-601.78346987,0.00013698,2]
[329943844,1718853041329,-337.54041617,0.00013698,2]
[329943845,1718853041659,-384.644286,0.00013698,2]
[329943846,1718853041671,-576.80320054,0.00013698,2]
[329943847,1718853041682,-1200.29386487,0.00013698,2]
[329943849,1718853041800,-332.98441238,0.00013698,2]
[329943850,1718853041812,-304.184176,0.00013698,2]
[329943851,1718853041823,-491.23337385,0.00013698,2]
[329943852,1718853041834,-527.39556223,0.00013698,2]
[329943853,1718853041846,-10813.61611074,0.00013698,2]
[329943854,1718853041855,-1521.44,0.00013698,2]
[329943855,1718853041865,-151.0,0.00013698,2]
[329943856,1718853041875,-878.59,0.00013698,2]
[329943857,1718853041884,-152.460326,0.00013698,2]
[329943858,1718853041893,-500.0,0.00013698,2]
[329943859,1718853041902,-506.72410458,0.00013698,2]
[329943860,1718853041912,-500.0,0.00013698,2]
[329943861,1718853041921,-2763.22,0.00013698,2]
[329943862,1718853041931,-500.0,0.00013698,2]
[329943863,1718853041940,-504.93418092,0.00013698,2]
[329943864,1718853041948,-565.09,0.00013698,2]
[329943865,1718853041958,-600.41,0.00013698,2]
[329943866,1718853041967,-509.41284677,0.00013698,2]
[329943867,1718853041981,-500.0,0.00013698,2]
[329943868,1718853041990,-1207.98,0.00013698,2]
[329943869,1718853041999,-11077.0,0.00013698,2]
[329943870,1718853042010,-218.4649,0.00013698,2]
[329943871,1718853042019,-157.64492,0.00013698,2]
[329943872,1718853042028,-218.4649,0.00013698,2]
[329943873,1718853042037,-218.4649,0.00013698,2]
[329943874,1718853042049,-15187.74,0.00013698,2]
[329943875,1718853042058,-218.4649,0.00013698,2]
[329943876,1718853042068,-18363.15,0.00013698,2]
[329943877,1718853042077,-2041.44,0.00013698,2]
[329943878,1718853042087,-702.34,0.00013698,2]
[329943879,1718853042096,-510.56884158,0.00013698,2]
[329943880,1718853042105,-500.0,0.00013698,2]
[329943881,1718853042116,-500.0,0.00013698,2]
[329943882,1718853042125,-218.4649,0.00013698,2]
[329943883,1718853042135,-218.4649,0.00013698,2]
[329943884,1718853042145,-718.76,0.00013698,2]
[329943885,1718853042159,-218.4649,0.00013698,2]
[329943886,1718853042168,-218.4649,0.00013698,2]
[329943887,1718853042177,-500.0,0.00013698,2]
[329943888,1718853042186,-5389.51942835,0.00013698,2]
[329943889,1718853042199,-68.67057165,0.00013698,2]
[329943890,1718853042209,-391.45950516,0.00013698,2]
[329943891,1718853042220,-447.28049484,0.00013698,2]
[329943892,1718853042230,-508.37710601,0.00013698,2]
[329943893,1718853042238,-500.0,0.00013698,2]
[329943894,1718853042247,-937.98,0.00013698,2]
[329943895,1718853042257,-510.26660026,0.00013698,2]
[329943896,1718853042266,-337.06582131,0.00013698,2]
[329943897,1718853042280,-167.73571185,0.00013698,2]
[329943898,1718853042290,-500.0,0.00013698,2]
[329943899,1718853042299,-500.0,0.00013698,2]
[329943900,1718853042308,-125.03243429,0.00013698,2]
[329943906,1718853043706,-374.96756571,0.00013698,2]
[329943907,1718853043716,-549.24,0.00013698,2]
[329943910,1718853043726,-504.12781057,0.00013698,2]
[329943912,1718853043735,-458.25828459,0.00013698,2]
[329943914,1718853043746,-2002.28171541,0.00013698,2]
[329943916,1718853043756,-591.20771848,0.00013698,2]
[329943918,1718853043768,-3799.999993,0.00013698,2]
[329943920,1718853043779,-1506.13228852,0.00013698,2]
[329943922,1718853043791,-717.89,0.00013698,2]
[329943924,1718853043800,-519.41765148,0.00013698,2]
[329943925,1718853043812,-2391.02273755,0.00013698,2]
[329943926,1718853043824,-403.22850324,0.00013698,2]
[329943927,1718853043836,-1505.29110773,0.00013698,2]
[329943928,1718853043845,-500.0,0.00013698,2]
[329943929,1718853043855,-500.0,0.00013698,2]
[329943930,1718853043865,-793.86,0.00013698,2]
[329943931,1718853043874,-938.00162021,0.00013698,2]
[329943932,1718853043886,-1484.48837979,0.00013698,2]
[329943933,1718853043895,-753.66,0.00013698,2]
[329943934,1718853043905,-290.61162021,0.00013698,2]
[329943935,1718853044208,-209.38837979,0.00013698,2]
[329943936,1718853044219,-279.90349756,0.00013698,2]
[329943937,1718853044231,-1290.14650244,0.00013698,2]
[329943938,1718853044241,-463.81084854,0.00013698,2]
[329943939,1718853044254,-36.18915146,0.00013698,2]
[329943940,1718853044263,-659.65951155,0.00013698,2]
[329943941,1718853044276,-2972.24132035,0.00013698,2]
[329943942,1718853044288,-627.5691681,0.00013698,2]
[329943943,1718853044298,-35.48169695,0.00013698,2]
[329943944,1718853044312,-468.64559429,0.00013698,2]
[329943945,1718853044322,-500.0,0.00013698,2]
[329943946,1718853044331,-500.0,0.00013698,2]
[329943947,1718853044341,-70.63820962,0.00013698,2]
[329943948,1718853044352,-429.36179038,0.00013698,2]
[329943949,1718853044362,-715.0019663,0.00013698,2]
[329943950,1718853044374,-347.8780337,0.00013698,2]
[329943951,1718853044384,-383.5611715,0.00013698,2]
[329943952,1718853044395,-1276.4995102,0.00013698,2]
[329943953,1718853044407,-412.74691942,0.00013698,2]
[329943954,1718853044420,-279.28750883,0.00013698,2]
[329943955,1718853044432,-4359.82489005,0.00013698,2]
[329943956,1718853044441,-507.96873088,0.00013698,2]
[329943957,1718853044451,-971.13,0.00013698,2]
[329943958,1718853044461,-500.0,0.00013698,2]
[329943959,1718853044471,-500.0,0.00013698,2]
[329943960,1718853044480,-1025.85,0.00013698,2]
[329943961,1718853044490,-2489.64,0.00013698,2]
[329943962,1718853044500,-605.1,0.00013698,2]
[329943963,1718853044510,-500.0,0.00013698,2]